fUST/lending_fUST_20241115
["ID","MTS","AMOUNT","RATE_DAILY","PERIOD"]
[342248810,1731653438241,-623.89,0.00013972,2]
[342248811,1731653438251,-665.84,0.00013972,2]
[342248812,1731653438262,-760.2,0.00013972,2]
[342248813,1731653438272,-600.32,0.00013972,2]
[342248814,1731653438282,-500.0,0.00013972,2]
[342248815,1731653438292,-531.38,0.00013972,2]
[342248816,1731653438302,-500.0,0.00013972,2]
[342248817,1731653438312,-846.69,0.00013972,2]
[342248818,1731653438321,-500.0,0.00013972,2]
[342248819,1731653438330,-151.0,0.00013972,2]
[342248820,1731653438340,-151.0,0.00013972,2]
[342248821,1731653438350,-500.0,0.00013972,2]
[342248822,1731653438360,-151.0,0.00013972,2]
[342248823,1731653438370,-151.0,0.00013972,2]
[342248824,1731653438380,-151.0,0.00013972,2]
[342248825,1731653438390,-631.27,0.00013972,2]
[342248826,1731653438400,-500.0,0.00013972,2]
[342248827,1731653438409,-500.0,0.00013972,2]
[342248828,1731653438419,-500.0,0.00013972,2]
[342248829,1731653438428,-503.17052741,0.00013972,2]
[342248830,1731653438437,-500.0,0.00013972,2]
[342248831,1731653438447,-151.0,0.00013972,2]
[342248832,1731653438456,-619.28,0.00013972,2]
[342248833,1731653438466,-505.47620384,0.00013972,2]
[342248834,1731653438476,-500.0,0.00013972,2]
[342248835,1731653438486,-732.29,0.00013972,2]
[342248836,1731653438495,-500.0,0.00013972,2]
[342248837,1731653438505,-500.0,0.00013972,2]
[342248838,1731653438516,-636.91731811,0.00013972,2]
[342248839,1731653438526,-500.0,0.00013972,2]
[342248840,1731653438535,-501.26111549,0.00013972,2]
[342248841,1731653438545,-2666.43,0.00013972,2]
[342248842,1731653438555,-500.0,0.00013972,2]
[342248843,1731653438564,-500.0,0.00013972,2]
[342248844,1731653438574,-500.0,0.00013972,2]
[342248845,1731653438584,-500.0,0.00013972,2]
[342248846,1731653438593,-857.24,0.00013972,2]
[342248847,1731653438603,-500.0,0.00013972,2]
[342248848,1731653438612,-151.0,0.00013972,2]
[342248849,1731653438622,-271.127496,0.00013972,2]
[342248850,1731653438631,-506.9090304,0.00013972,2]
[342248851,1731653438641,-500.0,0.00013972,2]
[342248852,1731653438651,-1649.9,0.00013972,2]
[342248853,1731653438661,-500.0,0.00013972,2]
[342248854,1731653438670,-500.0,0.00013972,2]
[342248855,1731653438680,-500.0,0.00013972,2]
[342248856,1731653438689,-601.2,0.00013972,2]
[342248857,1731653438698,-503.0448281,0.00013972,2]
[342248858,1731653438708,-1306.03,0.00013972,2]
[342248859,1731653438717,-500.0,0.00013972,2]
[342248860,1731653438727,-500.0,0.00013972,2]
[342248861,1731653438736,-1595.74,0.00013972,2]
[342248862,1731653438746,-500.0,0.00013972,2]
[342248863,1731653438756,-647.39,0.00013972,2]
[342248864,1731653438775,-2686.89,0.00013972,2]
[342248865,1731653438785,-500.0,0.00013972,2]
[342248866,1731653438795,-500.0,0.00013972,2]
[342248867,1731653438805,-500.0,0.00013972,2]
[342248868,1731653438814,-575.05,0.00013972,2]
[342248869,1731653438823,-161.23587161,0.00013972,2]
[342248870,1731653438833,-500.0,0.00013972,2]
[342248871,1731653438842,-500.0,0.00013972,2]
[342248872,1731653438851,-1044.58,0.00013972,2]
[342248873,1731653438860,-1808.14,0.00013972,2]
[342248874,1731653438869,-515.91625019,0.00013972,2]
[342248875,1731653438879,-2058.33,0.00013972,2]
[342248876,1731653438888,-500.0,0.00013972,2]
[342248877,1731653438898,-500.0,0.00013972,2]
[342248878,1731653438907,-500.0,0.00013972,2]
[342248879,1731653438916,-500.0,0.00013972,2]
[342248880,1731653438926,-722.5,0.00013972,2]
[342248881,1731653438935,-763.46,0.00013972,2]
[342248882,1731653438944,-500.0,0.00013972,2]
[342248883,1731653438954,-500.0,0.00013972,2]
[342248884,1731653438963,-737.76,0.00013972,2]
[342248885,1731653438972,-536.47738424,0.00013972,2]
[342248886,1731653438981,-500.0,0.00013972,2]
[342248887,1731653438990,-585.29,0.00013972,2]
[342248888,1731653438999,-506.08,0.00013972,2]
[342248889,1731653439010,-4083.77,0.00013972,2]
[342248890,1731653439019,-500.0,0.00013972,2]
[342248891,1731653439029,-684.64,0.00013972,2]
[342248892,1731653439038,-698.01,0.00013972,2]
[342248893,1731653439047,-500.0,0.00013972,2]
[342248894,1731653439056,-500.0,0.00013972,2]
[342248895,1731653439066,-561.77695,0.00013972,2]
[342248896,1731653439075,-561.77695,0.00013972,2]
[342248897,1731653439084,-500.0,0.00013972,2]
[342248898,1731653439094,-561.77695,0.00013972,2]
[342248899,1731653439113,-561.77695,0.00013972,2]
[342248900,1731653439123,-500.0,0.00013972,2]
[342248901,1731653439134,-561.77695,0.00013972,2]
[342248902,1731653439145,-561.77695,0.00013972,2]
[342248903,1731653439155,-500.0,0.00013972,2]
[342248904,1731653439165,-561.77695,0.00013972,2]
[342248905,1731653439174,-561.77695,0.00013972,2]
[342248906,1731653439188,-561.77695,0.00013972,2]
[342248907,1731653439197,-561.77695,0.00013972,2]
[342248908,1731653439207,-500.0,0.00013972,2]
[342248909,1731653439217,-561.77695,0.00013972,2]
[342248910,1731653439229,-561.776954,0.00013972,2]
[342248911,1731653439239,-500.0,0.00013972,2]
[342248912,1731653439249,-23956.27,0.00013972,2]
[342248913,1731653439260,-572.76,0.00013972,2]
[342248914,1731653439270,-667.33,0.00013972,2]
[342248915,1731653439280,-536.56147749,0.00013972,2]
[342248916,1731653439289,-560.38,0.00013972,2]
[342248917,1731653439300,-500.0,0.00013972,2]
[342248918,1731653439310,-500.0,0.00013972,2]
[342248919,1731653439320,-2052.49,0.00013972,2]
[342248920,1731653439331,-500.0,0.00013972,2]
[342248921,1731653439341,-500.0,0.00013972,2]
[342248922,1731653439350,-885.35,0.00013972,2]
[342248923,1731653439360,-500.0,0.00013972,2]
[342248924,1731653439370,-516.19,0.00013972,2]
[342248925,1731653439380,-534.84343835,0.00013972,2]
[342248926,1731653439389,-1897.36,0.00013972,2]
[342248927,1731653439399,-500.0,0.00013972,2]
[342248928,1731653439409,-718.68,0.00013972,2]
[342248929,1731653439418,-500.0,0.00013972,2]
[342248930,1731653439427,-1101.03,0.00013972,2]
[342248931,1731653439437,-1569.69,0.00013972,2]
[342248932,1731653439447,-500.0,0.00013972,2]
[342248933,1731653439456,-500.0,0.00013972,2]
[342248934,1731653439466,-1103.17,0.00013972,2]
[342248935,1731653439477,-2662.25,0.00013972,2]
[342248936,1731653439489,-500.0,0.00013972,2]
[342248937,1731653439500,-522.49155058,0.00013972,2]
[342248938,1731653439512,-1027.92,0.00013972,2]
[342248939,1731653439522,-500.0,0.00013972,2]
[342248941,1731653439531,-500.0,0.00013972,2]
[342248942,1731653439541,-1420.92,0.00013972,2]
[342248943,1731653439551,-500.0,0.00013972,2]
[342248944,1731653439561,-751.04,0.00013972,2]
[342248945,1731653439570,-584.87,0.00013972,2]
[342248946,1731653439580,-3851.32,0.00013972,2]
[342248947,1731653439590,-502.93,0.00013972,2]
[342248948,1731653439599,-624.42,0.00013972,2]
[342248949,1731653439615,-1045.099754,0.00013972,2]
[342248950,1731653439625,-1045.099754,0.00013972,2]
[342248951,1731653439634,-1045.099754,0.00013972,2]
[342248952,1731653439643,-1045.099754,0.00013972,2]
[342248953,1731653439652,-500.0,0.00013972,2]
[342248954,1731653439662,-1045.099754,0.00013972,2]
[342248955,1731653439671,-1045.099754,0.00013972,2]
[342248956,1731653439680,-1045.099754,0.00013972,2]
[342248957,1731653439692,-1045.099754,0.00013972,2]
[342248958,1731653439703,-1045.099754,0.00013972,2]
[342248959,1731653439712,-591.72,0.00013972,2]
[342248960,1731653439722,-1045.09975781,0.00013972,2]
[342248961,1731653439731,-600.38,0.00013972,2]
[342248962,1731653439741,-500.0,0.00013972,2]
[342248963,1731653439751,-870.59,0.00013972,2]
[342248964,1731653439762,-500.0,0.00013972,2]
[342248965,1731653439772,-500.0,0.00013972,2]
[342248966,1731653439782,-500.0,0.00013972,2]
[342248967,1731653439791,-500.0,0.00013972,2]
[342248968,1731653439801,-4127.08,0.00013972,2]
[342248969,1731653439811,-625.25,0.00013972,2]
[342248970,1731653439820,-1061.13,0.00013972,2]
[342248971,1731653439830,-500.0,0.00013972,2]
[342248972,1731653439839,-4117.45,0.00013972,2]
[342248973,1731653439849,-24965.73,0.00013972,2]
[342248974,1731653439859,-854.63,0.00013972,2]
[342248975,1731653439868,-7528.99,0.00013972,2]
[342248976,1731653439877,-976.29,0.00013972,2]
[342248977,1731653439887,-7401.22,0.00013972,2]
[342248978,1731653439896,-913.45,0.00013972,2]
[342248979,1731653439906,-1949.73,0.00013972,2]
[342248980,1731653439915,-151.459016,0.00013972,2]
[342248981,1731653439925,-151.459016,0.00013972,2]
[342248982,1731653439934,-151.459016,0.00013972,2]
[342248983,1731653439944,-151.459016,0.00013972,2]
[342248984,1731653439954,-151.459016,0.00013972,2]
[342248985,1731653439963,-553.19,0.00013972,2]
[342248986,1731653439972,-151.459016,0.00013972,2]
[342248987,1731653439982,-151.459016,0.00013972,2]
[342248988,1731653439992,-151.459016,0.00013972,2]
[342248989,1731653440002,-151.459016,0.00013972,2]
[342248990,1731653440012,-151.459025,0.00013972,2]
[342248991,1731653440022,-500.0,0.00013972,2]
[342248992,1731653440031,-500.0,0.00013972,2]
[342248993,1731653440041,-704.8,0.00013972,2]
[342248994,1731653440051,-385.74101817,0.00013972,2]
[342248996,1731653440062,-1817.2,0.00013972,2]
[342248997,1731653440072,-500.0,0.00013972,2]
[342248998,1731653440082,-500.0,0.00013972,2]
[342248999,1731653440091,-500.0,0.00013972,2]
[342249000,1731653440104,-935.85,0.00013972,2]
[342249001,1731653440114,-609.31,0.00013972,2]
[342249002,1731653440124,-500.0,0.00013972,2]
[342249003,1731653440134,-500.0,0.00013972,2]
[342249004,1731653440145,-500.0,0.00013973,2]
[342249005,1731653440155,-501.60107857,0.00013973,2]
[342249006,1731653440165,-500.0,0.00013973,2]
[342249007,1731653440178,-500.0,0.00013973,2]
[342249008,1731653440189,-500.71681551,0.00013973,2]
[342249009,1731653440199,-500.0,0.00013973,2]
[342249010,1731653440208,-500.0,0.00013973,2]
[342249011,1731653440218,-500.0,0.00013973,2]
[342249012,1731653440227,-504.16831237,0.00013973,2]
[342249013,1731653440237,-400.0,0.00013973,2]
[342249014,1731653440246,-150.112233,0.00014,2]
[342249015,1731653440256,-150.112233,0.000141,2]
[342249016,1731653440267,-150.112233,0.000142,2]
[342249017,1731653440276,-515.33387867,0.00014213,2]
[342249018,1731653440286,-509.25080049,0.00014221,2]
[342249019,1731653440295,-151.0,0.00014246,2]
[342249020,1731653440305,-151.0,0.00014246,2]
[342249021,1731653440315,-151.594296,0.00014246,2]
[342249022,1731653440325,-151.594296,0.00014246,2]
[342249023,1731653440335,-151.594296,0.00014246,2]
[342249024,1731653440345,-151.594296,0.00014246,2]
[342249025,1731653440355,-151.594296,0.00014246,2]
[342249026,1731653440364,-151.594296,0.00014246,2]
[342249027,1731653440373,-151.594296,0.00014246,2]
[342249028,1731653440383,-151.594296,0.00014246,2]
[342249029,1731653440392,-151.0,0.00014246,2]
[342249030,1731653440402,-151.0,0.00014246,2]
[342249031,1731653440412,-151.0,0.00014246,2]
[342249032,1731653440422,-151.0,0.00014246,2]
[342249033,1731653440432,-154.436442,0.00014246,2]
[342249034,1731653440442,-151.0,0.00014246,2]
[342249035,1731653440451,-151.0,0.00014246,2]
[342249036,1731653440462,-151.0,0.00014246,2]
[342249037,1731653440471,-151.0,0.00014246,2]
[342249038,1731653440481,-151.0,0.00014246,2]
[342249039,1731653440491,-151.0,0.00014246,2]
[342249040,1731653440501,-278.587861,0.00014246,2]
[342249041,1731653440513,-159.435192,0.00014246,2]
[342249042,1731653440522,-151.0,0.00014246,2]
[342249043,1731653440532,-154.274626,0.00014246,2]
[342249044,1731653440542,-185.832368,0.00014246,2]
[342249045,1731653440552,-160.898404,0.00014246,2]
[342249047,1731653440562,-160.898396,0.00014246,2]
[342249049,1731653440572,-1320.367654,0.00014246,2]
[342249050,1731653440582,-1320.367655,0.00014246,2]
[342249052,1731653440592,-151.0,0.00014246,2]
[342249054,1731653440601,-500.0,0.00014246,2]
[342249055,1731653440610,-743.88,0.00014246,2]
[342249056,1731653440620,-629.43,0.00014246,2]
[342249057,1731653440630,-500.0,0.00014246,2]
[342249058,1731653440638,-500.0,0.00014246,2]
[342249059,1731653440648,-500.0,0.00014246,2]
[342249060,1731653440658,-441.023466,0.00014246,2]
[342249061,1731653440667,-441.023468,0.00014246,2]
[342249062,1731653440676,-500.0,0.00014246,2]
[342249063,1731653440686,-500.0,0.00014246,2]
[342249064,1731653440695,-557.41,0.00014246,2]
[342249065,1731653440704,-500.0,0.00014246,2]
[342249066,1731653440714,-503.45374025,0.00014246,2]
[342249067,1731653440840,-151.0,0.00014246,2]
[342249068,1731653440851,-500.0,0.00014246,2]
[342249069,1731653440860,-500.0,0.00014246,2]
[342249070,1731653440870,-151.0,0.00014246,2]
[342249071,1731653440879,-500.0,0.00014246,2]
[342249072,1731653440889,-157.06529804,0.00014246,2]
[342249073,1731653440898,-500.0,0.00014246,2]
[342249074,1731653440908,-470.55124292,0.00014246,2]
[342249075,1731653440918,-1000.0,0.00014246,2]
[342249076,1731653440926,-500.0,0.00014246,2]
[342249077,1731653440936,-500.0,0.00014246,2]
[342249078,1731653440946,-500.0,0.00014246,2]
[342249079,1731653440955,-636.58,0.00014246,2]
[342249080,1731653440964,-500.0,0.00014246,2]
[342249081,1731653440974,-151.0,0.00014246,2]
[342249082,1731653440983,-500.0,0.00014246,2]
[342249083,1731653440993,-586.53,0.00014246,2]
[342249084,1731653441002,-623.89,0.00014246,2]
[342249085,1731653441013,-665.84,0.00014246,2]
[342249086,1731653441023,-760.2,0.00014246,2]
[342249087,1731653441032,-600.32,0.00014246,2]
[342249088,1731653441041,-500.0,0.00014246,2]
[342249089,1731653441051,-531.38,0.00014246,2]
[342249090,1731653441060,-500.0,0.00014246,2]
[342249091,1731653441069,-846.69,0.00014246,2]
[342249092,1731653441079,-500.0,0.00014246,2]
[342249093,1731653441087,-500.0,0.00014246,2]
[342249094,1731653441097,-151.0,0.00014246,2]
[342249095,1731653441110,-631.27,0.00014246,2]
[342249096,1731653441120,-500.0,0.00014246,2]
[342249097,1731653441129,-500.0,0.00014246,2]
[342249098,1731653441139,-500.0,0.00014246,2]
[342249099,1731653441149,-500.0,0.00014246,2]
[342249100,1731653441159,-619.28,0.00014246,2]
[342249101,1731653441168,-500.0,0.00014246,2]
[342249102,1731653441179,-732.29,0.00014246,2]
[342249103,1731653441189,-500.0,0.00014246,2]
[342249104,1731653441199,-500.0,0.00014246,2]
[342249105,1731653441209,-500.0,0.00014246,2]
[342249106,1731653441218,-2666.43,0.00014246,2]
[342249107,1731653441227,-500.0,0.00014246,2]
[342249108,1731653441236,-500.0,0.00014246,2]
[342249109,1731653441246,-500.0,0.00014246,2]
[342249110,1731653441256,-857.24,0.00014246,2]
[342249111,1731653441268,-500.0,0.00014246,2]
[342249112,1731653441278,-500.0,0.00014246,2]
[342249113,1731653441287,-1649.9,0.00014246,2]
[342249114,1731653441297,-500.0,0.00014246,2]
[342249115,1731653441307,-500.14884511,0.00014246,2]
[342249116,1731653441317,-500.0,0.00014246,2]
[342249117,1731653441327,-601.2,0.00014246,2]
[342249118,1731653441336,-1306.03,0.00014246,2]
[342249119,1731653441346,-500.0,0.00014246,2]
[342249120,1731653441356,-500.0,0.00014246,2]
[342249121,1731653441365,-1595.74,0.00014246,2]
[342249122,1731653441374,-500.0,0.00014246,2]
[342249123,1731653441383,-647.39,0.00014246,2]
[342249124,1731653441393,-2686.89,0.00014246,2]
[342249125,1731653441403,-500.0,0.00014246,2]
[342249126,1731653441414,-500.0,0.00014246,2]
[342249127,1731653441423,-500.0,0.00014246,2]
[342249128,1731653441432,-575.05,0.00014246,2]
[342249129,1731653441442,-500.0,0.00014246,2]
[342249130,1731653441453,-500.0,0.00014246,2]
[342249131,1731653441462,-1044.58,0.00014246,2]
[342249132,1731653441472,-1808.14,0.00014246,2]
[342249133,1731653441481,-2058.33,0.00014246,2]
[342249134,1731653441491,-500.0,0.00014246,2]
[342249135,1731653441500,-225.37537319,0.00014246,2]
[342249136,1731653441511,-500.0,0.00014246,2]
[342249137,1731653441520,-722.5,0.00014246,2]
[342249138,1731653441529,-500.0,0.00014246,2]
[342249139,1731653441538,-763.46,0.00014246,2]
[342249140,1731653441548,-500.0,0.00014246,2]
[342249141,1731653441557,-500.0,0.00014246,2]
[342249142,1731653441567,-737.76,0.00014246,2]
[342249143,1731653441576,-500.0,0.00014246,2]
[342249144,1731653441586,-585.29,0.00014246,2]
[342249145,1731653441596,-506.08,0.00014246,2]
[342249146,1731653441605,-4083.77,0.00014246,2]
[342249147,1731653441615,-500.0,0.00014246,2]
[342249148,1731653441624,-684.64,0.00014246,2]
[342249149,1731653441633,-698.01,0.00014246,2]
[342249150,1731653441643,-500.0,0.00014246,2]
[342249151,1731653441652,-623.0501737,0.00014246,2]
[342249152,1731653441663,-500.0,0.00014246,2]
[342249153,1731653441673,-500.0,0.00014246,2]
[342249154,1731653441684,-500.0,0.00014246,2]
[342249155,1731653441696,-475.10206198,0.00014246,2]
[342249156,1731653441706,-500.0,0.00014246,2]
[342249157,1731653441716,-23956.27,0.00014246,2]
[342249158,1731653441727,-572.76,0.00014246,2]
[342249159,1731653441737,-667.33,0.00014246,2]
[342249160,1731653441747,-560.38,0.00014246,2]
[342249161,1731653441758,-500.0,0.00014246,2]
[342249162,1731653441770,-500.0,0.00014246,2]
[342249163,1731653441780,-2052.49,0.00014246,2]
[342249164,1731653441790,-500.0,0.00014246,2]
[342249165,1731653441799,-500.0,0.00014246,2]
[342249166,1731653441809,-885.35,0.00014246,2]
[342249167,1731653441819,-500.0,0.00014246,2]
[342249168,1731653441829,-516.19,0.00014246,2]
[342249169,1731653441838,-1897.36,0.00014246,2]
[342249170,1731653441848,-500.0,0.00014246,2]
[342249171,1731653441859,-718.68,0.00014246,2]
[342249172,1731653441869,-500.0,0.00014246,2]
[342249173,1731653441879,-1101.03,0.00014246,2]
[342249174,1731653441889,-1569.69,0.00014246,2]
[342249175,1731653441898,-500.0,0.00014246,2]
[342249176,1731653441908,-500.0,0.00014246,2]
[342249177,1731653441917,-1103.17,0.00014246,2]
[342249178,1731653441926,-2662.25,0.00014246,2]
[342249179,1731653441936,-500.0,0.00014246,2]
[342249180,1731653441947,-1027.92,0.00014246,2]
[342249181,1731653441958,-500.0,0.00014246,2]
[342249182,1731653441968,-500.0,0.00014246,2]
[342249183,1731653441978,-1420.92,0.00014246,2]
[342249184,1731653441989,-500.0,0.00014246,2]
[342249185,1731653441999,-751.04,0.00014246,2]
[342249186,1731653442008,-584.87,0.00014246,2]
[342249187,1731653442020,-3851.32,0.00014246,2]
[342249188,1731653442030,-502.93,0.00014246,2]
[342249189,1731653442039,-624.42,0.00014246,2]
[342249190,1731653442048,-500.0,0.00014246,2]
[342249191,1731653442057,-591.72,0.00014246,2]
[342249192,1731653442066,-600.38,0.00014246,2]
[342249193,1731653442076,-500.0,0.00014246,2]
[342249194,1731653442085,-870.59,0.00014246,2]
[342249195,1731653442096,-500.0,0.00014246,2]
[342249196,1731653442110,-613.42383757,0.00014246,2]
[342249197,1731653442119,-500.0,0.00014246,2]
[342249198,1731653442129,-500.0,0.00014246,2]
[342249199,1731653442139,-4127.08,0.00014246,2]
[342249200,1731653442150,-625.25,0.00014246,2]
[342249201,1731653442159,-1061.13,0.00014246,2]
[342249202,1731653442168,-500.0,0.00014246,2]
[342249203,1731653442178,-4117.45,0.00014246,2]
[342249204,1731653442188,-24965.73,0.00014246,2]
[342249205,1731653442197,-854.63,0.00014246,2]
[342249206,1731653442207,-7528.99,0.00014246,2]
[342249207,1731653442216,-976.29,0.00014246,2]
[342249208,1731653442226,-7401.22,0.00014246,2]
[342249209,1731653442236,-913.45,0.00014246,2]
[342249210,1731653442245,-1949.73,0.00014246,2]
[342249211,1731653442254,-553.19,0.00014246,2]
[342249212,1731653442268,-500.0,0.00014246,2]
[342249213,1731653442280,-500.0,0.00014246,2]
[342249214,1731653442290,-704.8,0.00014246,2]
[342249215,1731653442299,-1817.2,0.00014246,2]
[342249216,1731653442309,-500.0,0.00014246,2]
[342249217,1731653442319,-500.0,0.00014246,2]
[342249218,1731653442328,-500.0,0.00014246,2]
[342249219,1731653442338,-935.85,0.00014246,2]
[342249220,1731653442348,-609.31,0.00014246,2]
[342249221,1731653442358,-500.0,0.00014246,2]
[342249222,1731653442368,-500.0,0.00014284,2]
[342249223,1731653442378,-500.0,0.00014284,2]
[342249224,1731653442387,-500.0,0.00014284,2]
[342249225,1731653442396,-500.0,0.00014284,2]
[342249226,1731653442406,-500.0,0.00014284,2]
[342249227,1731653442416,-500.50834424,0.00014284,2]
[342249228,1731653442430,-500.0,0.00014284,2]
[342249229,1731653442439,-500.0,0.00014284,2]
[342249230,1731653442449,-500.0,0.00014284,2]
[342249231,1731653442459,-500.0,0.00014303,2]
[342249232,1731653442468,-506.75179711,0.00014303,2]
[342249233,1731653442478,-504.02433247,0.00014319,2]
[342249234,1731653442491,-500.0,0.00014319,2]
[342249235,1731653442501,-500.0,0.00014319,2]
[342249236,1731653442514,-500.0,0.00014319,2]
[342249237,1731653442523,-500.88448688,0.00014319,2]
[342249238,1731653442533,-500.0,0.00014319,2]
[342249239,1731653442543,-500.30074979,0.00014319,2]
[342249240,1731653442552,-500.0,0.00014335,2]
[342249241,1731653442561,-500.63590425,0.00014335,2]
[342249242,1731653442571,-3040.45821,0.00014384,2]
[342249243,1731653442581,-150.112233,0.000144,2]
[342249244,1731653442590,-150.112233,0.000145,2]
[342249245,1731653442599,-151.0,0.0001452,2]
[342249246,1731653442609,-151.0,0.0001452,2]
[342249247,1731653442618,-151.0,0.0001452,2]
[342249248,1731653442627,-251.126999,0.0001452,2]
[342249249,1731653442636,-151.594296,0.0001452,2]
[342249250,1731653442645,-151.594296,0.0001452,2]
[342249251,1731653442654,-151.594296,0.0001452,2]
[342249252,1731653442664,-151.594296,0.0001452,2]
[342249253,1731653442674,-151.594296,0.0001452,2]
[342249254,1731653442683,-151.594306,0.0001452,2]
[342249255,1731653442691,-151.0,0.0001452,2]
[342249256,1731653442700,-154.277642,0.0001452,2]
[342249257,1731653442710,-500.0,0.0001452,2]
[342249258,1731653442719,-743.88,0.0001452,2]
[342249259,1731653442728,-629.43,0.0001452,2]
[342249260,1731653442737,-500.0,0.0001452,2]
[342249261,1731653442746,-500.0,0.0001452,2]
[342249262,1731653442755,-500.0,0.0001452,2]
[342249263,1731653442766,-226.18135311,0.0001452,2]
[342249264,1731653442775,-500.0,0.0001452,2]
[342249265,1731653442785,-557.41,0.0001452,2]
[342249266,1731653442793,-500.0,0.0001452,2]
[342249267,1731653442803,-500.0,0.0001452,2]
[342249268,1731653442812,-500.0,0.0001452,2]
[342249269,1731653442820,-500.0,0.0001452,2]
[342249270,1731653442830,-500.0,0.0001452,2]
[342249272,1731653442839,-1000.0,0.0001452,2]
[342249274,1731653442848,-500.0,0.0001452,2]
[342249275,1731653442857,-500.0,0.0001452,2]
[342249276,1731653442866,-500.0,0.0001452,2]
[342249277,1731653442876,-636.58,0.0001452,2]
[342249278,1731653442885,-500.0,0.0001452,2]
[342249279,1731653442894,-500.0,0.0001452,2]
[342249280,1731653442903,-586.53,0.0001452,2]
[342249281,1731653442912,-623.89,0.0001452,2]
[342249282,1731653442922,-665.84,0.0001452,2]
[342249283,1731653442931,-760.2,0.0001452,2]
[342249284,1731653442940,-600.32,0.0001452,2]
[342249285,1731653442949,-500.0,0.0001452,2]
[342249286,1731653442958,-531.38,0.0001452,2]
[342249287,1731653442968,-500.0,0.0001452,2]
[342249288,1731653442977,-846.69,0.0001452,2]
[342249289,1731653442986,-500.0,0.0001452,2]
[342249290,1731653442996,-500.0,0.0001452,2]
[342249291,1731653443005,-631.27,0.0001452,2]
[342249292,1731653443017,-404.58193585,0.0001452,2]
[342249293,1731653443026,-500.0,0.0001452,2]
[342249294,1731653443035,-500.0,0.0001452,2]
[342249295,1731653443044,-506.59638001,0.0001452,2]
[342249296,1731653443053,-619.28,0.0001452,2]
[342249297,1731653443062,-500.0,0.0001452,2]
[342249298,1731653443071,-732.29,0.0001452,2]
[342249299,1731653443080,-500.0,0.0001452,2]
[342249300,1731653443089,-500.0,0.0001452,2]
[342249301,1731653443099,-500.0,0.0001452,2]
[342249302,1731653443111,-2666.43,0.0001452,2]
[342249303,1731653443120,-500.0,0.0001452,2]
[342249304,1731653443129,-500.0,0.0001452,2]
[342249305,1731653443138,-500.0,0.0001452,2]
[342249306,1731653443150,-857.24,0.0001452,2]
[342249307,1731653443160,-500.0,0.0001452,2]
[342249308,1731653443170,-500.0,0.0001452,2]
[342249309,1731653443181,-1649.9,0.0001452,2]
[342249310,1731653443192,-500.0,0.0001452,2]
[342249311,1731653443202,-500.0,0.0001452,2]
[342249312,1731653443212,-601.2,0.0001452,2]
[342249313,1731653443221,-1306.03,0.0001452,2]
[342249314,1731653443231,-500.0,0.0001452,2]
[342249315,1731653443241,-500.0,0.0001452,2]
[342249316,1731653443250,-1595.74,0.0001452,2]
[342249317,1731653443259,-500.0,0.0001452,2]